fUSD/lending_fUSD_20240726
["ID","MTS","AMOUNT","RATE_DAILY","PERIOD"]
[333269052,1722007844989,-317.014,0.00010996,2]
[333269054,1722007844999,-500.0,0.00010999,2]
[333269056,1722007845009,-500.0,0.00010999,2]
[333269057,1722007845019,-581.29915076,0.00010999,2]
[333269060,1722007845028,-500.0,0.00010999,2]
[333269062,1722007845038,-500.0,0.00010999,2]
[333269065,1722007845049,-500.0,0.00010999,2]
[333269067,1722007845058,-500.0,0.00010999,2]
[333269068,1722007845067,-500.0,0.00010999,2]
[333269070,1722007845078,-500.0,0.00010999,2]
[333269072,1722007845090,-500.0,0.00010999,2]
[333269074,1722007845102,-500.0,0.00010999,2]
[333269076,1722007845113,-500.0,0.00010999,2]
[333269078,1722007845122,-500.0,0.00010999,2]
[333269080,1722007845131,-500.0,0.00010999,2]
[333269082,1722007845141,-500.0,0.00010999,2]
[333269084,1722007845150,-500.0,0.00010999,2]
[333269085,1722007845159,-500.0,0.00010999,2]
[333269087,1722007845169,-500.0,0.00010999,2]
[333269089,1722007845178,-500.0,0.00010999,2]
[333269091,1722007845188,-500.0,0.00010999,2]
[333269093,1722007845197,-500.0,0.00010999,2]
[333269095,1722007845207,-500.0,0.00010999,2]
[333269096,1722007845216,-500.0,0.00010999,2]
[333269099,1722007845225,-500.0,0.00010999,2]
[333269102,1722007845235,-500.0,0.00010999,2]
[333269105,1722007845244,-500.0,0.00010999,2]
[333269107,1722007845253,-500.0,0.00010999,2]
[333269109,1722007845263,-500.0,0.00010999,2]
[333269111,1722007845272,-500.0,0.00010999,2]
[333269112,1722007845282,-473.70746932,0.00010999,2]
[333269114,1722007845291,-288.99048267,0.00010999,2]
[333269116,1722007845301,-500.0,0.00010999,2]
[333269118,1722007845310,-500.0,0.00010999,2]
[333269120,1722007845319,-292.80110299,0.00010999,2]
[333269122,1722007845330,-535.2488635,0.00010999,2]
[333269124,1722007845339,-2000.0,0.00010999,2]
[333269125,1722007845348,-280.94847738,0.00010999,2]
[333269127,1722007845358,-505.65699347,0.00010999,2]
[333269129,1722007845369,-504.4009651,0.00010999,2]
[333269130,1722007845379,-500.0,0.00010999,2]
[333269132,1722007845389,-323.51,0.00010999,2]
[333269134,1722007845398,-177.27,0.00010999,2]
[333269137,1722007845408,-500.0,0.00010999,2]
[333269139,1722007845418,-275.14364554,0.00010999,2]
[333269141,1722007845428,-509.38561701,0.00010999,2]
[333269142,1722007845438,-504.49544029,0.00010999,2]
[333269145,1722007845447,-211.82638663,0.00010999,2]
[333269147,1722007845457,-501.99642173,0.00010999,2]
[333269150,1722007845466,-502.18585031,0.00010999,2]
[333269153,1722007845476,-503.34848436,0.00010999,2]
[333269155,1722007845486,-502.80917183,0.00010999,2]
[333269157,1722007845497,-474.25,0.00010999,2]
[333269159,1722007845506,-500.0,0.00010999,2]
[333269160,1722007845516,-600.7,0.00010999,2]
[333269162,1722007845526,-502.50441139,0.00010999,2]
[333269164,1722007845536,-503.31086949,0.00010999,2]
[333269166,1722007845545,-500.0,0.00010999,2]
[333269168,1722007845555,-500.0,0.00010999,2]
[333269170,1722007845565,-500.0,0.00010999,2]
[333269171,1722007845575,-500.0,0.00010999,2]
[333269173,1722007845584,-530.85,0.00010999,2]
[333269175,1722007845594,-500.0,0.00010999,2]
[333269177,1722007845604,-313.17556056,0.00010999,2]
[333269179,1722007845616,-224.67732186,0.00010999,2]
[333269181,1722007845633,-500.0,0.00010999,2]
[333269183,1722007845645,-500.0,0.00010999,2]
[333269185,1722007845655,-500.0,0.00010999,2]
[333269187,1722007845665,-500.0,0.00010999,2]
[333269189,1722007845675,-500.0,0.00010999,2]
[333269190,1722007845685,-219.04345853,0.00010999,2]
[333269192,1722007845695,-500.0,0.00010999,2]
[333269194,1722007845704,-500.0,0.00010999,2]
[333269196,1722007845714,-176.00650008,0.00010999,2]
[333269198,1722007845724,-1009.17321937,0.00010999,2]
[333269200,1722007845735,-500.0,0.00010999,2]
[333269202,1722007845750,-500.0,0.00010999,2]
[333269204,1722007845760,-504.93522128,0.00010999,2]
[333269206,1722007845770,-546.77,0.00010999,2]
[333269208,1722007845779,-502.02231631,0.00010999,2]
[333269210,1722007845789,-521.19268013,0.00010999,2]
[333269211,1722007845799,-504.87088019,0.00010999,2]
[333269213,1722007845808,-400.61529851,0.00010999,2]
[333269215,1722007845820,-159753.7788968,0.00011,2]
[333269217,1722007845830,-1500.0,0.00011,2]
[333269219,1722007845840,-2865.97935492,0.00011,2]
[333269220,1722007845849,-137248.24090913,0.00011,2]
[333269308,1722007846885,-366.53222648,0.00011,2]
[333269310,1722007846896,-723.49542968,0.00011,2]
[333269312,1722007846907,-17571.78652725,0.00011,2]
[333269316,1722007846934,-22962.679,0.00011,2]
[333269319,1722007846953,-3258.8,0.00011,2]
[333269321,1722007846964,-589.69667576,0.00011,2]
[333269323,1722007846975,-555.0,0.00011,2]
[333269325,1722007846986,-1828.02970101,0.00011,2]
[333269328,1722007846997,-828.46681849,0.00011,2]
[333269330,1722007847007,-904.64662748,0.00011,2]
[333269332,1722007847018,-1795.36741921,0.00011,2]
[333269334,1722007847029,-1891.29763656,0.00011,2]
[333269336,1722007847040,-1805.35167502,0.00011,2]
[333269338,1722007847051,-4030.75897368,0.00011,2]
[333269340,1722007847062,-987404.79431158,0.00011,2]
[333269342,1722007847073,-5694.90227695,0.00011,2]
[333269563,1722009031696,-844.24,8.219e-05,2]
[333269564,1722009031706,-258.2357,9.904e-05,2]
[333269565,1722009031715,-1000.0,9.921e-05,2]
[333269566,1722009031724,-250.0,9.935e-05,2]
[333269567,1722009031734,-250.0,9.965e-05,2]
[333269568,1722009031743,-1164.75,9.974e-05,2]
[333269569,1722009031752,-1250.0,0.0001,2]
[333269570,1722009031761,-300.0,0.00010003,2]
[333269571,1722009031771,-18906.76236571,0.00010004,2]
[333269572,1722009031784,-3452.92429944,0.00010004,2]
[333269573,1722009031796,-529.24457597,0.00010004,2]
[333269574,1722009031807,-376.37542403,0.00010004,2]
[333269592,1722009037534,-634.69333485,0.00010004,2]
[333269593,1722009037544,-181.61,0.00010115,2]
[333269595,1722009037553,-150.0,0.00010164,2]
[333269596,1722009037563,-1984.41,0.00010176,2]
[333269598,1722009037573,-499.99,0.00010219,2]
[333269599,1722009037583,-844.24,0.00010477,2]
[333269600,1722009037593,-333.28709,0.000108,2]
[333269601,1722009037602,-967.64,0.000109,2]
[333269602,1722009037612,-23007.9642,0.000109,2]
[333269603,1722009037624,-2318.7446,0.000109,2]
[333269604,1722009037634,-311.8452592,0.00010958,2]
[333269605,1722009037644,-500.0,0.00010958,2]
[333269606,1722009037653,-811.0,0.00010996,2]
[333269607,1722009037663,-450.0,0.00010996,2]
[333269608,1722009037672,-606.62,0.00010996,2]
[333269609,1722009037682,-150.0,0.00010996,2]
[333269610,1722009037692,-68.95551596,0.00010997,2]
[333269611,1722009037704,-548.38804454,0.00010997,2]
[333269612,1722009037714,-636.9548432,0.00010997,2]
[333269613,1722009037731,-1076.6798886,0.00010997,2]
[333269614,1722009037741,-123.50868465,0.00010997,2]
[333269615,1722009037752,-625.47431295,0.00010997,2]
[333269616,1722009037762,-2254.9349098,0.00010997,2]
[333269617,1722009037772,-4922.77759388,0.00010997,2]
[333269618,1722009037793,-1214.80253227,0.00010997,2]
[333269619,1722009037805,-283.83287331,0.00010997,2]
[333269620,1722009037820,-858.74623956,0.00010997,2]
[333269782,1722009039665,-960.01640894,0.00010997,2]
[333269784,1722009039676,-756.77499305,0.00010997,2]
[333269787,1722009039700,-634.69577325,0.00010997,2]
[333269790,1722009039712,-4568.12145839,0.00010997,2]
[333269792,1722009039723,-1056.7785687,0.00010997,2]
[333269794,1722009039734,-30.95367665,0.00010997,2]
[333269796,1722009039744,-1242.26232335,0.00010999,2]
[333269798,1722009039761,-757.73767665,0.00010999,2]
[333269800,1722009039770,-140.53876431,0.00010999,2]
[333269803,1722009039784,-39.9290045,0.00010999,2]
[333269805,1722009039794,-1347.12,0.00010999,2]
[333269807,1722009039803,-1347.12,0.00010999,2]
[333269808,1722009039813,-408.75021355,0.00010999,2]
[333269811,1722009039829,-938.36978645,0.00010999,2]
[333269813,1722009039839,-1347.12,0.00010999,2]
[333269815,1722009039849,-1347.12,0.00010999,2]
[333269817,1722009039859,-1347.12,0.00010999,2]
[333269819,1722009039884,-1347.12,0.00010999,2]
[333269821,1722009039901,-1347.12,0.00010999,2]
[333269823,1722009039911,-1347.12,0.00010999,2]
[333269825,1722009039921,-1347.12,0.00010999,2]
[333269827,1722009039930,-1347.12,0.00010999,2]
[333269829,1722009039940,-1347.12,0.00010999,2]
[333269831,1722009039950,-1347.12,0.00010999,2]
[333269833,1722009039960,-1347.12,0.00010999,2]
[333269834,1722009039969,-1347.12,0.00010999,2]
[333269836,1722009039978,-1347.12,0.00010999,2]
[333269838,1722009039987,-1347.12,0.00010999,2]
[333269840,1722009039997,-1347.12,0.00010999,2]
[333269842,1722009040006,-1347.12,0.00010999,2]
[333269844,1722009040015,-1347.12,0.00010999,2]
[333269846,1722009040025,-1347.12,0.00010999,2]
[333269848,1722009040035,-1347.12,0.00010999,2]
[333269850,1722009040044,-1347.12,0.00010999,2]
[333269851,1722009040053,-1347.35620879,0.00010999,2]
[333269853,1722009040062,-414.212513,0.00010999,2]
[333269855,1722009040072,-805.82874577,0.00010999,2]
[333269857,1722009040081,-13499.14458226,0.00011,2]
[333269860,1722009040093,-758.055998,0.00011,2]
[333269862,1722009040108,-138707.3312749,0.00011,2]
[333269865,1722009040128,-3668.1244637,0.00011,2]
[333269867,1722009040141,-101101.79362926,0.00011,2]
[333269869,1722009040157,-382.60523184,0.00011,2]
[333269871,1722009040170,-879.53341354,0.00011,2]
[333269873,1722009040194,-1793.69554076,0.00011,2]
[333270119,1722009042549,-150.0,0.00010996,2]
[333270121,1722009042560,-350.0,0.00011,2]
[333270123,1722009042573,-275.452,0.00011,2]
[333270125,1722009042587,-361871.6202388,0.00011,2]
[333270128,1722009042606,-2829.58704795,0.00011,2]
[333270134,1722009042664,-298.72,0.00011,2]
[333270141,1722009042718,-498.09121075,0.00011,2]
[333270148,1722009042775,-826.16927255,0.00011,2]
[333270150,1722009042789,-239297.10321505,0.00011,2]
[333270155,1722009042833,-4135.607814,0.00011,2]
[333270157,1722009042844,-758.19771398,0.00011,2]
[333270159,1722009042855,-1662.404714,0.00011,2]
[333270161,1722009042867,-1424.4,0.00011,2]
[333270463,1722009045743,-4675.99401809,0.00011,2]
[333270473,1722009045801,-333.76,0.00011,2]
[333270476,1722009045813,-1278.26181423,0.00011,2]
[333270604,1722009046615,-1342.35186,0.00011,2]
[333270606,1722009046628,-1026.0,0.00011,2]
[333271480,1722009645374,1000.0,0.00015,30]
[333271481,1722009686191,803.0,0.000182,120]
[333271482,1722009743246,150.0,6e-05,2]
[333271483,1722009743267,150.0,6e-05,2]
[333271484,1722009743288,150.0,6e-05,2]
[333271485,1722009743311,150.0,6e-05,2]
[333271486,1722009743335,150.0,6e-05,2]
[333271487,1722009743362,150.0,6e-05,2]
[333271488,1722009743384,150.0,6e-05,2]
[333271489,1722009743405,150.0,6e-05,2]
[333271490,1722009743425,150.0,6e-05,2]
[333271491,1722009743447,93.0,6e-05,2]
[333271495,1722009827801,150.0,6e-05,2]
[333271496,1722009827822,150.0,6e-05,2]
[333271497,1722009827843,150.0,6e-05,2]
[333271498,1722009827862,39.94116866,6e-05,2]
[333271499,1722009828623,110.05883134,6e-05,2]
[333271500,1722009828650,110.06576489,6e-05,2]
[333271501,1722009834730,150.0,6e-05,2]
[333271502,1722009834750,150.0,6e-05,2]
[333271503,1722009834770,150.0,6e-05,2]
[333271504,1722009834791,150.0,6e-05,2]
[333271505,1722009834811,150.0,6e-05,2]
[333271506,1722009834831,150.0,6e-05,2]
[333271507,1722009834852,52.19266125,6e-05,2]
[333271508,1722009834898,97.80733875,6e-05,2]
[333271509,1722009834921,57.19266125,6e-05,2]
[333271510,1722009835274,150.0,6e-05,2]
[333271511,1722009835296,150.0,6e-05,2]
[333271512,1722009835317,150.0,6e-05,2]
[333271513,1722009835338,150.0,6e-05,2]
[333271514,1722009835359,150.0,6e-05,2]
[333271515,1722009835382,150.0,6e-05,2]
[333271516,1722009835407,150.0,6e-05,2]
[333271517,1722009835430,150.0,6e-05,2]
[333271518,1722009835450,150.0,6e-05,2]
[333271519,1722009835476,150.0,6e-05,2]
[333271520,1722009835498,150.0,6e-05,2]
[333271521,1722009835520,150.0,6e-05,2]
[333271522,1722009835540,150.0,6e-05,2]
[333271523,1722009835562,150.0,6e-05,2]
[333271524,1722009835585,150.0,6e-05,2]
[333271525,1722009835607,150.0,6e-05,2]
[333271526,1722009835627,150.0,6e-05,2]
[333271527,1722009835650,150.0,6e-05,2]
[333271528,1722009835671,150.0,6e-05,2]
[333271529,1722009835692,150.0,6e-05,2]
[333271530,1722009835713,150.0,6e-05,2]
[333271531,1722009835735,150.0,6e-05,2]
[333271532,1722009835756,150.0,6e-05,2]
[333271533,1722009835776,150.0,6e-05,2]
[333271534,1722009835798,150.0,6e-05,2]
[333271535,1722009835820,150.0,6e-05,2]
[333271536,1722009835843,150.0,6e-05,2]
[333271537,1722009835865,150.0,6e-05,2]
[333271538,1722009835886,150.0,6e-05,2]
[333271539,1722009835908,150.0,6e-05,2]
[333271540,1722009835929,150.0,6e-05,2]
[333271541,1722009835951,128.79114212,6e-05,2]
[333271542,1722009836586,158.87294729,6e-05,2]
[333271543,1722009846118,300.85313924,6e-05,2]
[333271544,1722009846895,20367.51089698,6e-05,2]
[333271545,1722009848683,411.44480674,6e-05,2]
[333271546,1722009853945,150.0,6e-05,2]
[333271547,1722009853967,150.0,6e-05,2]
[333271548,1722009853988,150.0,6e-05,2]
[333271549,1722009854009,150.0,6e-05,2]
[333271550,1722009854031,150.0,6e-05,2]
[333271551,1722009854053,150.0,6e-05,2]
[333271552,1722009854075,150.0,6e-05,2]
[333271553,1722009854097,150.0,6e-05,2]
[333271554,1722009854119,192.16154898,6e-05,2]
[333271555,1722009854142,234550.45048026,6e-05,2]
[333271556,1722009856318,902.56084153,6e-05,2]
[333271558,1722009901922,199.73247078,6e-05,2]
[333271559,1722009908047,1324.09773323,6e-05,2]
[333271560,1722009912748,224.46863623,6e-05,2]
[333271561,1722009922991,485.05125098,6e-05,2]
[333271562,1722009930056,895.0,6e-05,2]
[333271563,1722009935408,155.0,6e-05,2]
[333271564,1722009943798,300.0,6e-05,2]
[333271565,1722009947889,4403.76622574,6e-05,2]
[333271566,1722009948724,174.30283527,6e-05,2]
[333271567,1722009949477,411.44480674,6e-05,2]
[333271568,1722009961205,158.87294729,6e-05,2]
[333271569,1722009963798,174.30283527,6e-05,2]
[333271570,1722009964479,411.44480674,6e-05,2]
[333271571,1722009978973,235942.61202924,6e-05,2]
[333271573,1722009989964,235942.61202924,6e-05,2]
[333271574,1722009993556,155.0,6e-05,2]
[333271575,1722010004478,481.82866668,6e-05,2]
[333271600,1722010051213,158.87294729,6e-05,2]
[333271632,1722010067836,-411.44480674,7.273e-05,2]
[333271633,1722010067860,-21588.55519326,7.273e-05,2]
[333271634,1722010073470,411.44480674,6e-05,2]
[333271684,1722010181223,304.75010799,6e-05,2]
[333271685,1722010183490,411.44480674,6e-05,2]
[333271689,1722010213188,1000.0,0.00014,120]
[333271690,1722010224106,1000.0,0.00014,120]
[333271691,1722010230447,1000.0,0.00014,120]
[333271712,1722010231780,-1204.70442374,7.273e-05,2]
[333271715,1722010231791,-1256.0721124,7.273e-05,2]
[333271718,1722010231942,-3106.0090687,7.273e-05,2]
[333271719,1722010231953,-789.78456334,7.273e-05,2]
[333271720,1722010232054,-396.48017172,7.273e-05,2]
[333271721,1722010234004,1000.0,0.00014,120]
[333271751,1722010238361,-695.62449941,7.273e-05,2]
[333271752,1722010238373,-425.54702192,7.273e-05,2]
[333271753,1722010238384,-871.96,7.273e-05,2]
[333271754,1722010238395,-722.5474921,7.273e-05,2]
[333271755,1722010238406,-21784.63601466,7.273e-05,2]
[333271756,1722010238416,-3791.46814228,7.273e-05,2]
[333271763,1722010239807,-49893.24230301,7.273e-05,2]
[333271772,1722010239890,-14806.25,7.273e-05,2]
[333271778,1722010239972,-1130.32059321,7.273e-05,2]
[333271780,1722010239983,-1034.355,7.273e-05,2]
[333271783,1722010239996,-2198.49212684,7.273e-05,2]
[333271801,1722010240192,-470.73536654,7.273e-05,2]
[333272041,1722010242776,-15072.03985249,7.273e-05,2]
[333272047,1722010242831,-4491.72001492,7.273e-05,2]
[333272051,1722010242886,-511.74477419,7.273e-05,2]
[333272057,1722010246590,-17714.41253113,7.273e-05,2]
[333272058,1722010246617,-61687.48460466,7.273e-05,2]
[333272059,1722010246626,-244.74495077,7.273e-05,2]
[333272060,1722010246636,-789.62,8.219e-05,2]
[333272061,1722010246645,-250.0,9.946e-05,2]
[333272062,1722010246655,-181.61,9.975e-05,2]
[333272063,1722010246664,-1000.0,0.0001,2]
[333272064,1722010246674,-1250.0,0.0001,2]
[333272065,1722010246683,-1000.0,0.00010052,2]
[333272066,1722010246693,-247.0,0.00010071,2]
[333272067,1722010246705,-17360.97968674,0.00010072,2]
[333272068,1722010246718,-1539.28031326,0.00010072,2]
[333272069,1722010246727,-250.0,0.0001009,2]
[333272070,1722010246740,-499.99,0.00010172,2]
[333272071,1722010246750,-789.62,0.00010481,2]
[333272072,1722010246759,-300.0,0.00010795,2]
[333272073,1722010246769,-772.01891355,0.00010899,2]
[333272074,1722010246780,-227.98108645,0.00010899,2]
[333272075,1722010246790,-159.55752474,0.00010899,2]
[333272076,1722010246799,-159.55752472,0.00010899,2]
[333272077,1722010246808,-159.55752472,0.00010899,2]
[333272078,1722010246817,-159.55752472,0.00010899,2]
[333272079,1722010246827,-159.55752472,0.000109,2]
[333272080,1722010246836,-159.55752472,0.000109,2]
[333272081,1722010246846,-396.4801,0.000109,2]
[333272082,1722010246856,-7267.75984936,0.000109,2]
[333272083,1722010246868,-17865.0,0.000109,2]
[333272084,1722010246880,-405.44155064,0.000109,2]
[333272085,1722010246890,-159.55752472,0.000109,2]
[333272086,1722010246900,-159.55752472,0.000109,2]
[333272087,1722010246909,-721.90599266,0.000109,2]
[333272088,1722010246921,-43.09400734,0.000109,2]
[333272089,1722010246930,-159.55752472,0.000109,2]
[333272090,1722010246940,-211.12701678,0.000109,2]
[333272091,1722010246952,-150.0,0.00010959,2]
[333272092,1722010246961,-1223.32145116,0.00010995,2]
[333272186,1722010252204,1002.41,0.00014,120]
[333272187,1722010257895,1000.0,0.00014,120]
[333272188,1722010262291,1000.0,0.00014,120]
[333272204,1722011064410,-700.0,8.23e-05,2]
[333272222,1722011404042,2207.08092049,6e-05,2]
[333272227,1722011432150,-783.99,8.219e-05,2]
[333272228,1722011432160,-300.0,8.229e-05,2]
[333272229,1722011432171,-416.01,8.23e-05,2]
[333272230,1722011432184,-11546.0343548,8.23e-05,2]
[333272231,1722011432194,-578.20564769,8.23e-05,2]
[333272232,1722011432205,-757.59814731,8.23e-05,2]
[333272233,1722011432215,-240.0,9.052e-05,2]
[333272234,1722011432224,-23598.62,9.486e-05,2]
[333272235,1722011432234,-181.61,9.569e-05,2]
[333272236,1722011432243,-250.0,9.57e-05,2]
[333272237,1722011432253,-800.0,9.836e-05,2]
[333272238,1722011432263,-150.0,9.855e-05,2]
[333272239,1722011432273,-999.99,9.856e-05,2]
[333272240,1722011432283,-150.0,9.888e-05,2]
[333272241,1722011432292,-168.75,9.913e-05,2]
[333272242,1722011432310,-4108.95,9.976e-05,2]
[333272243,1722011432320,-204.02094627,9.976e-05,2]
[333272244,1722011432401,-155.0,8.23e-05,2]
[333272245,1722011432411,-10370.98379244,9.976e-05,2]
[333272246,1722011432423,-1507.26682709,9.976e-05,2]
[333272247,1722011432434,-608.42001,9.976e-05,2]
[333272248,1722011432451,-1163.3884242,9.976e-05,2]
[333272249,1722011432460,-499.99,9.976e-05,2]
[333272250,1722011432470,-157.81,9.995e-05,2]
[333272251,1722011432480,-1050.95366184,0.0001,2]
[333272252,1722011432489,-175.69,0.0001,2]
[333272253,1722011432499,-175.69,0.0001,2]
[333272254,1722011432508,-175.69,0.0001,2]
[333272255,1722011432517,-175.69,0.0001,2]
[333272256,1722011432527,-200.0,0.00010006,2]
[333272257,1722011432535,-157.81,0.00010012,2]
[333272258,1722011432546,-157.81,0.00010029,2]
[333272259,1722011432562,-175.69,0.00010037,2]
[333272260,1722011432571,-157.81,0.00010045,2]
[333272261,1722011432580,-600.0,0.00010045,2]
[333272262,1722011432589,-188.85,0.00010047,2]
[333272263,1722011432598,-300.0,0.00010278,2]
[333272264,1722011432607,-783.99,0.00010458,2]
[333272266,1722011432616,-175.69,0.00010732,2]
[333272268,1722011432625,-175.69,0.00010732,2]
[333272269,1722011432635,-529.84,0.00010742,2]
[333272271,1722011432645,-150.0,0.00010742,2]
[333272273,1722011432654,-355.9,0.00010742,2]
[333272275,1722011432663,-151.1,0.00010742,2]
[333272277,1722011432673,-150.0,0.00010742,2]
[333272279,1722011432682,-425.61,0.00010742,2]
[333272281,1722011432691,-150.0,0.00010742,2]
[333272283,1722011432701,-150.0,0.00010742,2]
[333272285,1722011432710,-355.9,0.00010742,2]
[333272286,1722011432719,-150.96,0.00010742,2]
[333272287,1722011432728,-150.0,0.00010742,2]
[333272288,1722011432739,-425.61,0.00010742,2]
[333272289,1722011432749,-150.0,0.00010742,2]
[333272290,1722011432758,-355.9,0.00010742,2]
[333272291,1722011432768,-425.61,0.00010742,2]
[333272292,1722011432780,-150.0,0.00010742,2]
[333272293,1722011432791,-355.9,0.00010742,2]
[333272294,1722011432802,-150.0,0.00010742,2]
[333272295,1722011432812,-150.0,0.00010742,2]
[333272296,1722011432821,-425.61,0.00010742,2]
[333272297,1722011432830,-150.0,0.00010742,2]
[333272298,1722011432839,-150.0,0.00010742,2]
[333272299,1722011432848,-150.0,0.00010742,2]
[333272300,1722011432858,-355.9,0.00010742,2]
[333272301,1722011432872,-150.0,0.00010742,2]
[333272302,1722011432881,-425.0,0.00010742,2]
[333272303,1722011432891,-150.0,0.00010742,2]
[333272304,1722011432901,-355.9,0.00010742,2]
[333272305,1722011432912,-150.0,0.00010742,2]
[333272306,1722011432922,-363.3224,0.00010799,2]
[333272307,1722011432933,-175.69,0.00010889,2]
[333272308,1722011432944,-175.69,0.00010889,2]
[333272309,1722011432954,-175.69,0.00010889,2]
[333272310,1722011432963,-175.69,0.00010889,2]
[333272311,1722011432974,-175.69,0.00010889,2]
[333272312,1722011432984,-175.69,0.00010889,2]
[333272313,1722011432995,-175.69,0.00010889,2]
[333272314,1722011433004,-175.69,0.00010889,2]
[333272315,1722011433013,-175.69,0.00010889,2]
[333272316,1722011433022,-175.69,0.00010889,2]
[333272317,1722011433032,-175.69,0.00010889,2]
[333272318,1722011433041,-175.69,0.00010889,2]
[333272319,1722011433057,-175.69,0.00010889,2]
[333272320,1722011433069,-175.69,0.00010889,2]
[333272321,1722011433079,-175.69,0.00010889,2]
[333272322,1722011433088,-175.69,0.00010889,2]
[333272323,1722011433097,-175.69,0.00010889,2]
[333272324,1722011433107,-175.69,0.00010889,2]
[333272325,1722011433116,-175.69,0.00010889,2]
[333272326,1722011433126,-175.69,0.00010889,2]
[333272327,1722011433136,-175.69,0.00010889,2]
[333272328,1722011433145,-175.69,0.00010889,2]
[333272329,1722011433154,-175.69,0.00010889,2]
[333272330,1722011433164,-175.69,0.0001089,2]
[333272331,1722011433173,-175.69,0.0001089,2]
[333272332,1722011433183,-1030.261,0.00010899,2]
[333272333,1722011433192,-26231.09130271,0.00010899,2]
[333272334,1722011433219,-11426.40894832,0.00010899,2]
[333272335,1722011433231,-716.59388063,0.00010899,2]
[333272336,1722011433243,-1931.16017973,0.00010899,2]
[333272337,1722011433255,-576.41012845,0.00010899,2]
[333272338,1722011433267,-581.06799919,0.00010899,2]
[333272342,1722011438053,-450.95372915,0.00010899,2]
[333272343,1722011438228,-2348.40046312,0.00010899,2]
[333272344,1722011438342,-1004.1745623,0.00010899,2]
[333272501,1722011440084,-466.38107,0.00010899,2]
[333272502,1722011440097,-13664.3031364,0.00010899,2]
[333272503,1722011440108,-8890.1113,0.00010899,2]
[333272504,1722011440118,-299.99,0.00010899,2]
[333272505,1722011440128,-366.84836799,0.000109,2]
[333272506,1722011440139,-6065.4356,0.000109,2]
[333272507,1722011440150,-177.69822982,0.000109,2]
[333272508,1722011440160,-175.69,0.00010948,2]
[333272509,1722011440171,-175.69,0.00010948,2]
[333272510,1722011440182,-175.69,0.00010948,2]
[333272512,1722011440192,-175.69,0.00010948,2]
[333272514,1722011440203,-175.69,0.00010948,2]
[333272516,1722011440213,-175.69,0.00010948,2]
[333272518,1722011440224,-175.69,0.00010948,2]
[333272520,1722011440234,-175.69,0.00010948,2]
[333272522,1722011440245,-175.69,0.00010948,2]
[333272524,1722011440255,-175.69,0.00010948,2]
[333272526,1722011440266,-175.69,0.00010948,2]
[333272528,1722011440276,-500.0,0.00010958,2]
[333272531,1722011440287,-500.0,0.00010958,2]
[333272533,1722011440298,-500.0,0.00010958,2]
[333272535,1722011440315,-500.0,0.00010958,2]
[333272537,1722011440326,-500.0,0.00010958,2]
[333272539,1722011440336,-172.40082952,0.00010958,2]
[333272541,1722011440347,-500.0,0.00010958,2]
[333272543,1722011440357,-500.0,0.00010958,2]
[333272545,1722011440368,-578.87219462,0.00010958,2]
[333272547,1722011440379,-500.0,0.00010958,2]